fUSD/lending_fUSD_20241127
["ID","MTS","AMOUNT","RATE_DAILY","PERIOD"]
[343543999,1732716669776,-500.0,9.999e-05,2]
[343544000,1732716669786,-500.0,9.999e-05,2]
[343544001,1732716669796,-3301.76,9.999e-05,2]
[343544002,1732716669809,-500.0,9.999e-05,2]
[343544003,1732716669819,-3301.76,9.999e-05,2]
[343544004,1732716669829,-500.0,9.999e-05,2]
[343544005,1732716669839,-438.55148302,9.999e-05,2]
[343544006,1732716669851,-364.27193555,9.999e-05,2]
[343544007,1732716669862,-1480.83,9.999e-05,2]
[343544008,1732716669871,-1480.83,9.999e-05,2]
[343544009,1732716669881,-3301.78144508,9.999e-05,2]
[343544010,1732716669892,-1480.83,9.999e-05,2]
[343544011,1732716669902,-1480.83,9.999e-05,2]
[343544012,1732716669911,-1480.83,9.999e-05,2]
[343544013,1732716669922,-1480.83,9.999e-05,2]
[343544014,1732716669932,-1480.83,9.999e-05,2]
[343544015,1732716669945,-1480.83,9.999e-05,2]
[343544016,1732716669954,-1480.83,9.999e-05,2]
[343544017,1732716669964,-1480.97837872,9.999e-05,2]
[343544018,1732716669978,-821.62,9.999e-05,2]
[343544019,1732716669989,-821.62,9.999e-05,2]
[343544020,1732716670002,-821.62,9.999e-05,2]
[343544021,1732716670014,-821.62,9.999e-05,2]
[343544022,1732716670024,-821.62,9.999e-05,2]
[343544023,1732716670034,-821.62,9.999e-05,2]
[343544024,1732716670045,-821.62,9.999e-05,2]
[343544025,1732716670056,-821.62,9.999e-05,2]
[343544026,1732716670067,-821.62,9.999e-05,2]
[343544027,1732716670079,-821.62,9.999e-05,2]
[343544028,1732716670091,-821.62,9.999e-05,2]
[343544029,1732716670102,-821.8142081,9.999e-05,2]
[343544030,1732716670112,-7528.94,9.999e-05,2]
[343544031,1732716670124,-7528.94,9.999e-05,2]
[343544032,1732716670135,-7528.94,9.999e-05,2]
[343544033,1732716670146,-7528.94,9.999e-05,2]
[343544034,1732716670156,-7528.94,9.999e-05,2]
[343544035,1732716670166,-7528.94,9.999e-05,2]
[343544036,1732716670176,-7528.94,9.999e-05,2]
[343544037,1732716670186,-7528.94,9.999e-05,2]
[343544038,1732716670196,-7528.94,9.999e-05,2]
[343544039,1732716670207,-7528.96170847,9.999e-05,2]
[343544040,1732716670217,-1089.85,9.999e-05,2]
[343544041,1732716670229,-1089.85,9.999e-05,2]
[343544042,1732716670238,-1089.85,9.999e-05,2]
[343544043,1732716670248,-1089.85,9.999e-05,2]
[343544044,1732716670261,-1089.85,9.999e-05,2]
[343544045,1732716670271,-1089.85,9.999e-05,2]
[343544046,1732716670280,-1089.85,9.999e-05,2]
[343544047,1732716670289,-1089.85,9.999e-05,2]
[343544048,1732716670299,-1089.85,9.999e-05,2]
[343544049,1732716670308,-1090.01,9.999e-05,2]
[343544050,1732716670317,-577.09,9.999e-05,2]
[343544051,1732716670326,-577.09,9.999e-05,2]
[343544052,1732716670335,-577.09,9.999e-05,2]
[343544053,1732716670345,-577.09,9.999e-05,2]
[343544054,1732716670355,-577.09,9.999e-05,2]
[343544055,1732716670365,-577.09,9.999e-05,2]
[343544056,1732716670375,-577.09,9.999e-05,2]
[343544057,1732716670384,-577.09,9.999e-05,2]
[343544058,1732716670394,-577.09,9.999e-05,2]
[343544059,1732716670404,-577.09,9.999e-05,2]
[343544060,1732716670413,-577.09,9.999e-05,2]
[343544061,1732716670423,-577.09005515,9.999e-05,2]
[343544062,1732716670433,-2554.58,9.999e-05,2]
[343544063,1732716670443,-2554.58,9.999e-05,2]
[343544064,1732716670452,-2554.58,9.999e-05,2]
[343544065,1732716670463,-2554.58,9.999e-05,2]
[343544066,1732716670473,-2554.58,9.999e-05,2]
[343544067,1732716670483,-2554.58,9.999e-05,2]
[343544068,1732716670492,-2554.58,9.999e-05,2]
[343544069,1732716670502,-2554.58,9.999e-05,2]
[343544070,1732716670514,-2554.58,9.999e-05,2]
[343544071,1732716670523,-2554.58,9.999e-05,2]
[343544072,1732716670532,-2554.58,9.999e-05,2]
[343544073,1732716670542,-2554.79323714,9.999e-05,2]
[343544074,1732716670555,-2846.36,9.999e-05,2]
[343544075,1732716670565,-2846.36,9.999e-05,2]
[343544076,1732716670574,-2846.36,9.999e-05,2]
[343544077,1732716670584,-2846.36,9.999e-05,2]
[343544078,1732716670596,-2293.62,9.999e-05,2]
[343544079,1732716670606,-2846.36,9.999e-05,2]
[343544080,1732716670615,-2293.62,9.999e-05,2]
[343544081,1732716670627,-2846.36,9.999e-05,2]
[343544082,1732716670636,-2293.62,9.999e-05,2]
[343544083,1732716670646,-2293.62,9.999e-05,2]
[343544084,1732716670656,-2846.36,9.999e-05,2]
[343544085,1732716670665,-2293.62,9.999e-05,2]
[343544086,1732716670675,-2846.36,9.999e-05,2]
[343544087,1732716670685,-2293.62,9.999e-05,2]
[343544088,1732716670694,-2846.36,9.999e-05,2]
[343544089,1732716670704,-2846.36,9.999e-05,2]
[343544090,1732716670713,-2293.62,9.999e-05,2]
[343544091,1732716670722,-2846.39696355,9.999e-05,2]
[343544092,1732716670732,-2293.62,9.999e-05,2]
[343544093,1732716670741,-2293.62,9.999e-05,2]
[343544094,1732716670751,-2293.76916122,9.999e-05,2]
[343544095,1732716670764,-1075.08,9.999e-05,2]
[343544096,1732716670773,-690.58,9.999e-05,2]
[343544097,1732716670783,-1075.08,9.999e-05,2]
[343544098,1732716670792,-690.58,9.999e-05,2]
[343544099,1732716670802,-1075.08,9.999e-05,2]
[343544100,1732716670814,-690.58,9.999e-05,2]
[343544101,1732716670824,-690.58,9.999e-05,2]
[343544102,1732716670833,-1075.08,9.999e-05,2]
[343544103,1732716670843,-690.58,9.999e-05,2]
[343544104,1732716670853,-1075.08,9.999e-05,2]
[343544105,1732716670862,-690.58,9.999e-05,2]
[343544106,1732716670871,-1075.08,9.999e-05,2]
[343544107,1732716670881,-690.58,9.999e-05,2]
[343544108,1732716670891,-1075.08,9.999e-05,2]
[343544109,1732716670900,-690.58,9.999e-05,2]
[343544110,1732716670910,-1075.08,9.999e-05,2]
[343544111,1732716670921,-1075.08,9.999e-05,2]
[343544112,1732716670935,-690.58,9.999e-05,2]
[343544113,1732716670945,-1075.19607889,9.999e-05,2]
[343544114,1732716670956,-834.59,9.999e-05,2]
[343544115,1732716670966,-690.58,9.999e-05,2]
[343544116,1732716670976,-834.59,9.999e-05,2]
[343544117,1732716670987,-690.58,9.999e-05,2]
[343544118,1732716670998,-834.59,9.999e-05,2]
[343544119,1732716671011,-690.58,9.999e-05,2]
[343544120,1732716671020,-834.59,9.999e-05,2]
[343544121,1732716671029,-690.71241444,9.999e-05,2]
[343544122,1732716671039,-834.59,9.999e-05,2]
[343544123,1732716671048,-834.59,9.999e-05,2]
[343544124,1732716671057,-834.59,9.999e-05,2]
[343544125,1732716671066,-834.59,9.999e-05,2]
[343544126,1732716671079,-834.59,9.999e-05,2]
[343544127,1732716671089,-834.59,9.999e-05,2]
[343544128,1732716671098,-834.68600139,9.999e-05,2]
[343544129,1732716671108,-2100.73,9.999e-05,2]
[343544130,1732716671117,-2100.73,9.999e-05,2]
[343544131,1732716671128,-2100.73,9.999e-05,2]
[343544132,1732716671138,-2100.73,9.999e-05,2]
[343544133,1732716671147,-2100.73,9.999e-05,2]
[343544134,1732716671156,-2100.73,9.999e-05,2]
[343544135,1732716671166,-2100.73,9.999e-05,2]
[343544136,1732716671176,-2100.73,9.999e-05,2]
[343544137,1732716671185,-2100.73,9.999e-05,2]
[343544138,1732716671199,-2100.73,9.999e-05,2]
[343544139,1732716671209,-500.0,9.999e-05,2]
[343544140,1732716671219,-2100.73,9.999e-05,2]
[343544141,1732716671228,-500.0,9.999e-05,2]
[343544142,1732716671239,-2100.8799071,9.999e-05,2]
[343544143,1732716671249,-500.0,9.999e-05,2]
[343544144,1732716671260,-500.0,9.999e-05,2]
[343544145,1732716671269,-500.0,9.999e-05,2]
[343544146,1732716671279,-500.0,9.999e-05,2]
[343544147,1732716671288,-500.0,9.999e-05,2]
[343544148,1732716671297,-500.0,9.999e-05,2]
[343544149,1732716671307,-500.0,9.999e-05,2]
[343544150,1732716671318,-500.0,9.999e-05,2]
[343544151,1732716671329,-500.0,9.999e-05,2]
[343544152,1732716671338,-500.0,9.999e-05,2]
[343544153,1732716671347,-500.0,9.999e-05,2]
[343544154,1732716671357,-500.0,9.999e-05,2]
[343544155,1732716671366,-500.0,9.999e-05,2]
[343544156,1732716671377,-500.0,9.999e-05,2]
[343544157,1732716671386,-538.93898193,9.999e-05,2]
[343544158,1732716671396,-500.0,9.999e-05,2]
[343544159,1732716671405,-477.10158749,9.999e-05,2]
[343544160,1732716671415,-500.0,9.999e-05,2]
[343544161,1732716671424,-500.0,9.999e-05,2]
[343544162,1732716671433,-500.0,9.999e-05,2]
[343544163,1732716671443,-500.0,9.999e-05,2]
[343544164,1732716671453,-500.0,9.999e-05,2]
[343544165,1732716671462,-500.0,9.999e-05,2]
[343544166,1732716671472,-380688.22389096,0.0001,2]
[343544167,1732716671481,-5630.24917554,0.0001,2]
[343544168,1732716671491,-4293.61035621,0.0001,2]
[343544169,1732716671500,-4293.61035621,0.0001,2]
[343544170,1732716671510,-4293.61035621,0.0001,2]
[343544171,1732716671519,-4293.61035621,0.0001,2]
[343544172,1732716671529,-6341453.77106101,0.0001,2]
[343544173,1732716672172,-211.17212595,9.999e-05,2]
[343544174,1732716672182,-465.67551067,0.0001,2]
[343544175,1732716672193,-18413.23206794,0.0001,2]
[343544176,1732716672205,-1152.82548087,0.0001,2]
[343544177,1732716672395,-500.0,9.998e-05,2]
[343544178,1732716672405,-419.82889674,9.998e-05,2]
[343544179,1732716672418,-80.17110326,9.998e-05,2]
[343544180,1732716672429,-486.70889674,9.998e-05,2]
[343544181,1732716672445,-13.29110326,9.998e-05,2]
[343544182,1732716672454,-160.43338363,9.999e-05,2]
[343544183,1732716672464,-1836.9521927,0.0001,2]
[343544184,1732716672483,-1061.04412,0.0001,2]
[343544185,1732716672767,-26411.84,0.0001,2]
[343544186,1732716672779,-3060.87307004,0.0001,2]
[343544187,1732716672790,-3383.31103149,0.0001,2]
[343544188,1732716672802,-3325.056,0.0001,2]
[343544189,1732716672814,-271359.82492954,0.0001,2]
[343544190,1732716672836,-18027.98145639,0.0001,2]
[343544191,1732716672847,-2300.76790864,0.0001,2]
[343544192,1732716672858,-2770.55786474,0.0001,2]
[343544193,1732716672869,-368.78080626,0.0001,2]
[343544194,1732716672882,-9436.1931289,0.0001,2]
[343544195,1732716672894,-1029.499999,0.0001,2]
[343544196,1732716674418,-11924.14460876,0.0001,2]
[343544197,1732716674431,-5762.88304,0.0001,2]
[343544198,1732716674451,-378186.8514102,0.0001,2]
[343544199,1732716674572,-758.0385976,0.0001,2]
[343544200,1732716674589,-6385.02724612,0.0001,2]
[343544201,1732716674604,-356.97,0.0001,2]
[343544202,1732716674617,-359.8528929,0.0001,2]
[343544203,1732716674633,-782.31295024,0.0001,2]
[343544204,1732716674648,-4728.2877,0.0001,2]
[343544205,1732716674667,-42069.35403911,0.0001,2]
[343544206,1732716674680,-2877.70452517,0.0001,2]
[343544207,1732716674694,-9437.15,0.0001,2]
[343544208,1732716674708,-1751.60000002,0.0001,2]
[343544209,1732716674721,-2396.74999925,0.0001,2]
[343544210,1732716674734,-269.53141384,0.0001,2]
[343544211,1732716674745,-1999.80459681,0.0001,2]
[343544212,1732716674759,-556.88634083,0.0001,2]
[343544214,1732717291335,2418.18756145,0.00026,90]
[343544215,1732717551749,187.81694636,0.00025999,120]
[343544223,1732717650985,135454.82125194,1e-06,7]
[343544268,1732717832260,-156.88356966,8e-05,2]
[343544270,1732717832270,-346.99344875,8.219e-05,2]
[343544271,1732717832281,-579.38216276,8.219e-05,2]
[343544272,1732717832308,-587.1212102,8.219e-05,2]
[343544273,1732717832539,-13.51317829,8.219e-05,2]
[343544274,1732717832548,-200.95214991,8.552e-05,2]
[343544275,1732717832559,-3291.08,8.552e-05,2]
[343544276,1732717832569,-1000.0,8.592e-05,2]
[343544277,1732717832579,-12718.96577644,8.649e-05,2]
[343544291,1732717832846,-460.55422356,8.649e-05,2]
[343544293,1732717832856,-794.53992181,8.662e-05,2]
[343544295,1732717832875,-2243.11007819,8.662e-05,2]
[343544297,1732717832885,-250.0,8.662e-05,2]
[343544299,1732717832894,-1606.38,8.687e-05,2]
[343544301,1732717832906,-2007.73,8.772e-05,2]
[343544303,1732717832917,-250.0,8.81e-05,2]
[343544305,1732717832926,-200.0,8.863e-05,2]
[343544307,1732717832936,-240.46,8.866e-05,2]
[343544309,1732717832946,-173.68,8.895e-05,2]
[343544310,1732717832957,-1326.58,8.901e-05,2]
[343544311,1732717832967,-720.59,8.97e-05,2]
[343544312,1732717832976,-2049.1,8.97e-05,2]
[343544313,1732717832986,-1000.0,9e-05,2]
[343544314,1732717832995,-485.14,9.046e-05,2]
[343544315,1732717833004,-250.0,9.055e-05,2]
[343544316,1732717833013,-172.83,9.055e-05,2]
[343544317,1732717833022,-184.3,9.074e-05,2]
[343544318,1732717833032,-434.45,9.541e-05,2]
[343544319,1732717833043,-150.0,9.591e-05,2]
[343544320,1732717833052,-173.68,9.629e-05,2]
[343544321,1732717833067,-707.08514381,9.629e-05,2]
[343544323,1732717838238,-341.48485619,9.629e-05,2]
[343544324,1732717838248,-1000.0,9.666e-05,2]
[343544325,1732717838258,-150.0,9.678e-05,2]
[343544326,1732717838267,-434.46,9.678e-05,2]
[343544327,1732717838276,-150.0,9.678e-05,2]
[343544328,1732717838285,-363.48,9.678e-05,2]
[343544329,1732717838295,-2500.0,9.899e-05,2]
[343544330,1732717838305,-479.0,9.899e-05,2]
[343544331,1732717838316,-150.0,9.899e-05,2]
[343544332,1732717838326,-161.927239,9.9e-05,2]
[343544333,1732717838335,-500.0,9.973e-05,2]
[343544334,1732717838344,-500.0,9.973e-05,2]
[343544335,1732717838354,-153.649,9.973e-05,2]
[343544336,1732717838363,-28751.60215304,9.985e-05,2]
[343544337,1732717838373,-251.43945474,9.99e-05,2]
[343544338,1732717838382,-500.0,9.994e-05,2]
[343544339,1732717838391,-500.0,9.994e-05,2]
[343544340,1732717838401,-500.0,9.994e-05,2]
[343544341,1732717838411,-1050.37,9.994e-05,2]
[343544342,1732717838420,-500.0,9.994e-05,2]
[343544343,1732717838430,-500.0,9.994e-05,2]
[343544344,1732717838441,-500.0,9.994e-05,2]
[343544345,1732717838450,-2017.26,9.994e-05,2]
[343544346,1732717838460,-502.80537274,9.994e-05,2]
[343544347,1732717838469,-500.0,9.994e-05,2]
[343544348,1732717838479,-500.0,9.994e-05,2]
[343544349,1732717838489,-500.0,9.994e-05,2]
[343544350,1732717838499,-596.04,9.994e-05,2]
[343544351,1732717838508,-511.4,9.994e-05,2]
[343544352,1732717838520,-500.0,9.994e-05,2]
[343544353,1732717838530,-501.76550305,9.995e-05,2]
[343544354,1732717838540,-500.0,9.995e-05,2]
[343544355,1732717838551,-982.72,9.995e-05,2]
[343544356,1732717838561,-1153.6,9.995e-05,2]
[343544357,1732717838577,-1298.18,9.995e-05,2]
[343544358,1732717838587,-500.0,9.995e-05,2]
[343544359,1732717838596,-500.0,9.995e-05,2]
[343544360,1732717838605,-321.62,9.995e-05,2]
[343544361,1732717838615,-500.0,9.995e-05,2]
[343544362,1732717838625,-500.0,9.995e-05,2]
[343544363,1732717838635,-1239.7,9.995e-05,2]
[343544364,1732717838644,-524.67,9.995e-05,2]
[343544365,1732717838654,-206.4079074,9.995e-05,2]
[343544366,1732717838663,-500.0,9.995e-05,2]
[343544367,1732717838672,-1050.37,9.995e-05,2]
[343544368,1732717838682,-1050.37,9.995e-05,2]
[343544369,1732717838691,-505.69,9.995e-05,2]
[343544370,1732717838700,-500.0,9.995e-05,2]
[343544371,1732717838710,-597.01,9.995e-05,2]
[343544372,1732717838720,-500.0,9.995e-05,2]
[343544373,1732717838729,-500.0,9.995e-05,2]
[343544374,1732717838739,-500.0,9.995e-05,2]
[343544375,1732717838749,-500.0,9.995e-05,2]
[343544376,1732717838759,-2017.26,9.995e-05,2]
[343544377,1732717838769,-2017.26,9.995e-05,2]
[343544378,1732717838778,-500.0,9.995e-05,2]
[343544379,1732717838787,-500.0,9.995e-05,2]
[343544381,1732717838797,-500.0,9.995e-05,2]
[343544383,1732717838806,-500.0,9.995e-05,2]
[343544385,1732717838818,-500.0,9.995e-05,2]
[343544387,1732717838827,-500.0,9.995e-05,2]
[343544389,1732717838837,-6965.028,9.995e-05,2]
[343544391,1732717838846,-542.73,9.995e-05,2]
[343544392,1732717838855,-500.0,9.996e-05,2]
[343544393,1732717838865,-500.0,9.996e-05,2]
[343544394,1732717838875,-500.0,9.996e-05,2]
[343544395,1732717838884,-982.72,9.996e-05,2]
[343544396,1732717838894,-982.72,9.996e-05,2]
[343544397,1732717838903,-982.72,9.996e-05,2]
[343544398,1732717838916,-1153.6,9.996e-05,2]
[343544399,1732717838926,-1153.6,9.996e-05,2]
[343544401,1732717838935,-1153.6,9.996e-05,2]
[343544402,1732717838945,-1298.18,9.996e-05,2]
[343544403,1732717838957,-1298.18,9.996e-05,2]
[343544404,1732717838967,-1298.18,9.996e-05,2]
[343544405,1732717838976,-500.0,9.996e-05,2]
[343544406,1732717838986,-500.0,9.996e-05,2]
[343544407,1732717838995,-500.0,9.996e-05,2]
[343544408,1732717839005,-500.0,9.996e-05,2]
[343544409,1732717839014,-500.0,9.996e-05,2]
[343544410,1732717839023,-500.0,9.996e-05,2]
[343544411,1732717839032,-500.0,9.996e-05,2]
[343544412,1732717839042,-500.0,9.996e-05,2]
[343544413,1732717839051,-500.0,9.996e-05,2]
[343544414,1732717839063,-500.0,9.996e-05,2]
[343544415,1732717839073,-1239.7,9.996e-05,2]
[343544416,1732717839082,-1239.7,9.996e-05,2]
[343544417,1732717839091,-1239.7,9.996e-05,2]
[343544418,1732717839100,-1239.7,9.996e-05,2]
[343544419,1732717839110,-500.0,9.996e-05,2]
[343544420,1732717839119,-500.0,9.996e-05,2]
[343544421,1732717839128,-500.0,9.996e-05,2]
[343544422,1732717839137,-500.0,9.996e-05,2]
[343544423,1732717839148,-1050.37,9.996e-05,2]
[343544424,1732717839158,-1050.37,9.996e-05,2]
[343544425,1732717839167,-1050.37,9.996e-05,2]
[343544426,1732717839176,-1050.37,9.996e-05,2]
[343544427,1732717839186,-500.0,9.996e-05,2]
[343544428,1732717839195,-500.0,9.996e-05,2]
[343544429,1732717839204,-500.0,9.996e-05,2]
[343544430,1732717839214,-500.0,9.996e-05,2]
[343544431,1732717839223,-500.0,9.996e-05,2]
[343544432,1732717839232,-500.0,9.996e-05,2]
[343544433,1732717839242,-500.0,9.996e-05,2]
[343544434,1732717839252,-309.43826048,9.996e-05,2]
[343544435,1732717839262,-2017.26,9.996e-05,2]
[343544436,1732717839271,-2017.26,9.996e-05,2]
[343544437,1732717839281,-2017.26,9.996e-05,2]
[343544438,1732717839290,-2017.26,9.996e-05,2]
[343544439,1732717839299,-500.0,9.996e-05,2]
[343544440,1732717839308,-500.0,9.996e-05,2]
[343544441,1732717839320,-500.0,9.996e-05,2]
[343544442,1732717839329,-500.0,9.996e-05,2]
[343544443,1732717839339,-500.0,9.996e-05,2]
[343544444,1732717839348,-500.0,9.996e-05,2]
[343544445,1732717839357,-500.0,9.996e-05,2]
[343544446,1732717839366,-500.0,9.996e-05,2]
[343544447,1732717839376,-500.0,9.996e-05,2]
[343544448,1732717839385,-500.0,9.996e-05,2]
[343544449,1732717839395,-500.0,9.996e-05,2]
[343544450,1732717839404,-500.0,9.996e-05,2]
[343544451,1732717839414,-500.0,9.996e-05,2]
[343544452,1732717839424,-500.0,9.996e-05,2]
[343544453,1732717839433,-500.0,9.996e-05,2]
[343544454,1732717839442,-500.0,9.996e-05,2]
[343544455,1732717839452,-605.17,9.996e-05,2]
[343544456,1732717839461,-1244.61,9.996e-05,2]
[343544457,1732717839470,-500.0,9.996e-05,2]
[343544458,1732717839479,-500.0,9.996e-05,2]
[343544459,1732717839488,-8350.11,9.996e-05,2]
[343544460,1732717839498,-500.0,9.996e-05,2]
[343544461,1732717839507,-500.0,9.996e-05,2]
[343544462,1732717839517,-500.0,9.996e-05,2]
[343544463,1732717839526,-541.66,9.996e-05,2]
[343544464,1732717839535,-500.0,9.996e-05,2]
[343544465,1732717839546,-500.0,9.996e-05,2]
[343544466,1732717839555,-500.0,9.996e-05,2]
[343544467,1732717839567,-500.0,9.996e-05,2]
[343544468,1732717839576,-1098.71,9.996e-05,2]
[343544469,1732717839586,-500.0,9.996e-05,2]
[343544470,1732717839595,-1066.42,9.996e-05,2]
[343544471,1732717839606,-2678.45,9.996e-05,2]
[343544472,1732717839615,-2179.71,9.996e-05,2]
[343544473,1732717839625,-774.89,9.996e-05,2]
[343544474,1732717839634,-500.0,9.996e-05,2]
[343544475,1732717839644,-500.0,9.996e-05,2]
[343544476,1732717839653,-500.0,9.996e-05,2]
[343544477,1732717839662,-500.0,9.997e-05,2]
[343544478,1732717839672,-500.0,9.997e-05,2]
[343544479,1732717839682,-618.25462705,9.997e-05,2]
[343544480,1732717839691,-500.0,9.997e-05,2]
[343544481,1732717839701,-982.72,9.997e-05,2]
[343544482,1732717839711,-982.72,9.997e-05,2]
[343544483,1732717839720,-982.72,9.997e-05,2]
[343544484,1732717839730,-1153.6,9.997e-05,2]
[343544485,1732717839740,-1153.6,9.997e-05,2]
[343544486,1732717839750,-1153.6,9.997e-05,2]
[343544487,1732717839760,-1298.18,9.997e-05,2]
[343544488,1732717839769,-1298.18,9.997e-05,2]
[343544489,1732717839779,-1298.18,9.997e-05,2]
[343544490,1732717839789,-500.0,9.997e-05,2]
[343544491,1732717839798,-500.0,9.997e-05,2]
[343544492,1732717839808,-500.0,9.997e-05,2]
[343544493,1732717839823,-523.3,9.997e-05,2]
[343544494,1732717839835,-500.0,9.997e-05,2]
[343544495,1732717839844,-500.0,9.997e-05,2]
[343544496,1732717839855,-500.0,9.997e-05,2]
[343544497,1732717839864,-1239.7,9.997e-05,2]
[343544498,1732717839873,-1239.7,9.997e-05,2]
[343544499,1732717839883,-1239.7,9.997e-05,2]
[343544500,1732717839893,-1239.7,9.997e-05,2]
[343544501,1732717839910,-500.0,9.997e-05,2]
[343544502,1732717839920,-500.0,9.997e-05,2]
[343544503,1732717839929,-500.0,9.997e-05,2]
[343544504,1732717839939,-500.0,9.997e-05,2]
[343544505,1732717839949,-500.0,9.997e-05,2]
[343544506,1732717839958,-500.0,9.997e-05,2]
[343544507,1732717839969,-1050.37,9.997e-05,2]
[343544508,1732717839978,-1050.37,9.997e-05,2]
[343544509,1732717839988,-500.0,9.997e-05,2]
[343544510,1732717839998,-500.0,9.997e-05,2]
[343544511,1732717840008,-621.0,9.997e-05,2]
[343544512,1732717840017,-500.0,9.997e-05,2]
[343544514,1732717840027,-500.0,9.997e-05,2]
[343544515,1732717840036,-627.4,9.997e-05,2]
[343544516,1732717840046,-2017.26,9.997e-05,2]
[343544517,1732717840055,-2017.26,9.997e-05,2]
[343544518,1732717840068,-500.0,9.997e-05,2]
[343544519,1732717840077,-500.0,9.997e-05,2]
[343544520,1732717840087,-500.0,9.997e-05,2]
[343544521,1732717840096,-500.0,9.997e-05,2]
[343544522,1732717840106,-500.0,9.997e-05,2]
[343544523,1732717840115,-500.0,9.997e-05,2]
[343544524,1732717840125,-500.0,9.997e-05,2]
[343544525,1732717840135,-500.0,9.997e-05,2]
[343544526,1732717840144,-500.0,9.997e-05,2]
[343544527,1732717840154,-534.1823021,9.997e-05,2]
[343544528,1732717840163,-615.98,9.997e-05,2]
[343544529,1732717840174,-500.0,9.997e-05,2]
[343544530,1732717840184,-500.0,9.997e-05,2]
[343544531,1732717840193,-500.0,9.997e-05,2]
[343544532,1732717840203,-545.02,9.997e-05,2]
[343544533,1732717840213,-500.0,9.997e-05,2]
[343544534,1732717840222,-500.0,9.997e-05,2]
[343544535,1732717840231,-500.0,9.997e-05,2]
[343544536,1732717840241,-500.0,9.997e-05,2]
[343544537,1732717840250,-872.1,9.997e-05,2]
[343544538,1732717840259,-500.0,9.997e-05,2]
[343544539,1732717840268,-500.0,9.997e-05,2]
[343544540,1732717840277,-500.0,9.997e-05,2]
[343544541,1732717840287,-500.0,9.997e-05,2]
[343544542,1732717840297,-500.0,9.997e-05,2]
[343544543,1732717840307,-500.0,9.997e-05,2]
[343544544,1732717840320,-500.0,9.997e-05,2]
[343544545,1732717840330,-506.95377962,9.997e-05,2]
[343544546,1732717840339,-500.0,9.997e-05,2]
[343544547,1732717840348,-500.0,9.997e-05,2]
[343544548,1732717840358,-504.67993985,9.997e-05,2]
[343544549,1732717840368,-500.0,9.997e-05,2]
[343544550,1732717840378,-500.0,9.997e-05,2]
[343544551,1732717840387,-500.0,9.997e-05,2]
[343544552,1732717840396,-575.45,9.997e-05,2]
[343544553,1732717840406,-500.0,9.997e-05,2]
[343544554,1732717840415,-500.0,9.997e-05,2]
[343544555,1732717840425,-500.0,9.997e-05,2]
[343544556,1732717840435,-500.0,9.997e-05,2]
[343544557,1732717840444,-552.48,9.997e-05,2]
[343544558,1732717840453,-500.0,9.997e-05,2]
[343544559,1732717840463,-500.0,9.997e-05,2]
[343544560,1732717840473,-1366.58,9.997e-05,2]
[343544561,1732717840483,-500.0,9.997e-05,2]
[343544562,1732717840493,-500.0,9.997e-05,2]
[343544563,1732717840503,-500.0,9.997e-05,2]
[343544564,1732717840512,-500.0,9.997e-05,2]
[343544565,1732717840522,-500.0,9.997e-05,2]
[343544566,1732717840531,-512.86734072,9.997e-05,2]
[343544567,1732717840540,-500.0,9.997e-05,2]
[343544568,1732717840550,-500.0,9.997e-05,2]
[343544569,1732717840559,-500.0,9.997e-05,2]
[343544570,1732717840573,-982.72,9.998e-05,2]
[343544571,1732717840583,-982.72,9.998e-05,2]
[343544572,1732717840592,-982.72,9.998e-05,2]
[343544573,1732717840602,-982.72,9.998e-05,2]
[343544574,1732717840611,-1153.6,9.998e-05,2]
[343544575,1732717840621,-1153.6,9.998e-05,2]
[343544576,1732717840631,-1153.6,9.998e-05,2]
[343544577,1732717840643,-1153.6,9.998e-05,2]
[343544578,1732717840653,-1298.18,9.998e-05,2]
[343544579,1732717840662,-1298.18,9.998e-05,2]
[343544580,1732717840672,-1298.18,9.998e-05,2]
[343544581,1732717840682,-1298.18,9.998e-05,2]
[343544583,1732717840692,-500.0,9.998e-05,2]